lending/lending_fUSD_20240509
["ID","MTS","AMOUNT","RATE_DAILY","PERIOD"]
[326680753,1715219447294,-385.65,0.00013699,2]
[326680754,1715219447304,-7396.68,0.00013699,2]
[326680755,1715219447313,-304.43,0.00013701,2]
[326680756,1715219447323,-193.0283978,0.00014,2]
[326680757,1715219447332,-210.0,0.00014187,2]
[326680758,1715219447341,-172.95,0.00014643,2]
[326680759,1715219447351,-400.0,0.00014907,2]
[326680760,1715219447361,-155.0,0.00015,2]
[326680761,1715219447371,-155.30629382,0.00015,2]
[326680762,1715219447381,-618.27704425,0.00015,2]
[326680763,1715219447390,-4213.84844279,0.00015,2]
[326680764,1715219447400,-161.82,0.00015066,2]
[326680765,1715219447412,-968.0,0.00015217,2]
[326680766,1715219447421,-397.18696462,0.00015318,2]
[326680767,1715219447431,-155.0,0.000155,2]
[326680768,1715219447440,-293.0,0.00015605,2]
[326680769,1715219447450,-167.0,0.00015831,2]
[326680770,1715219447460,-161.82,0.00016436,2]
[326680771,1715219447469,-1037.9,0.00016438,2]
[326680772,1715219447479,-304.43,0.00016441,2]
[326680773,1715219447489,-1225.84618609,0.000165,2]
[326680774,1715219447499,-178.41,0.00016524,2]
[326680775,1715219447514,-968.0,0.00016739,2]
[326680776,1715219447523,-400.0,0.0001677,2]
[326680777,1715219447533,-536.54,0.00016841,2]
[326680778,1715219447543,-167.62297559,0.000169,2]
[326680779,1715219447554,-411.0,0.00017166,2]
[326680780,1715219447563,-2811.01987703,0.0001788,2]
[326680781,1715219447577,-2902.08861258,0.0001788,2]
[326680782,1715219447588,-5713.1084896,0.0001788,2]
[326680783,1715219447598,-5713.1084896,0.0001788,2]
[326680784,1715219447607,-397.18696462,0.00018137,2]
[326680785,1715219447617,-968.0,0.00018261,2]
[326680786,1715219447627,-167.0,0.00018444,2]
[326680787,1715219447636,-400.0,0.00018633,2]
[326680788,1715219447646,-5000.0,0.00019,2]
[326680789,1715219447655,-156.05,0.00019178,2]
[326680790,1715219447665,-385.65,0.00019178,2]
[326680791,1715219447674,-546.45604395,0.000192,2]
[326680792,1715219447685,-3876.54489169,0.000192,2]
[326680793,1715219447695,-413.56,0.000192,2]
[326680794,1715219447706,-369.04,0.000192,2]
[326680795,1715219447716,-397.7,0.000192,2]
[326680796,1715219447726,-150.5,0.00019686,15]
[326680797,1715219447736,-150.5,0.00019696,15]
[326680798,1715219447975,-150.5,0.00019706,15]
[326680799,1715219447985,-231.0,0.00019716,15]
[326680800,1715219447994,-151.40745691,0.000199,2]
[326680801,1715219448004,-151.40745661,0.000199,2]
[326680802,1715219448014,-151.40745661,0.000199,2]
[326680803,1715219448023,-151.40745661,0.000199,2]
[326680804,1715219448033,-151.40745661,0.000199,2]
[326680805,1715219448043,-151.40745661,0.000199,2]
[326680806,1715219448053,-151.40745661,0.000199,2]
[326680807,1715219448062,-151.40745661,0.000199,2]
[326680809,1715219448072,-151.40745661,0.000199,2]
[326680811,1715219448082,-151.40745661,0.000199,2]
[326680813,1715219448091,-151.40745661,0.000199,2]
[326680815,1715219448101,-151.40745661,0.000199,2]
[326680817,1715219448110,-151.40745661,0.000199,2]
[326680819,1715219448120,-151.40745661,0.000199,2]
[326680821,1715219448129,-151.40745661,0.000199,2]
[326680823,1715219448139,-151.40745661,0.000199,2]
[326680825,1715219448149,-151.40745661,0.000199,2]
[326680827,1715219448159,-155.0,0.0002,2]
[326680829,1715219448168,-775.58601626,0.0002,2]
[326680831,1715219448177,-151.40745661,0.00020003,2]
[326680833,1715219448187,-5713.1084896,0.00020233,2]
[326680835,1715219448197,-151.40745661,0.00020421,2]
[326680837,1715219448207,-400.0,0.00020497,2]
[326680839,1715219448217,-883.0,0.000208,3]
[326680841,1715219448226,-151.40745661,0.00020838,2]
[326680843,1715219448235,-3111.0,0.000209,3]
[326680845,1715219448244,-397.18696462,0.00020955,2]
[326680847,1715219448254,-151.40745661,0.00021256,2]
[326680849,1715219448263,-155.20712654,0.00021339,2]
[326680851,1715219448272,-160.02716343,0.00021431,2]
[326680853,1715219448283,-174.9,0.00021445,2]
[326680855,1715219448293,-152.19,0.00021589,15]
[326680857,1715219448303,-154.04026945,0.00021669,2]
[326680859,1715219448312,-151.40745661,0.00021674,2]
[326680861,1715219448322,-397.7,0.000217,2]
[326680863,1715219448331,-158.84784853,0.00021855,2]
[326680865,1715219448340,-2000.0,0.00021918,2]
[326680867,1715219448350,-250.0,0.00021918,2]
[326680869,1715219448359,-174.35,0.00021918,2]
[326680871,1715219448368,-6255.51583732,0.00022,2]
[326680873,1715219448377,-397.44388952,0.00022,2]
[326680875,1715219448387,-397.44388952,0.00022,2]
[326680877,1715219448396,-397.44388952,0.00022,2]
[326680879,1715219448406,-397.44388952,0.00022,2]
[326680881,1715219448415,-397.44388952,0.00022,2]
[326680883,1715219448424,-397.44388952,0.00022,2]
[326680885,1715219448434,-397.44388952,0.00022,2]
[326680887,1715219448443,-397.44388952,0.00022,2]
[326680889,1715219448454,-397.44388952,0.00022,2]
[326680891,1715219448464,-397.44388952,0.00022,2]
[326680893,1715219448473,-397.44388952,0.00022,2]
[326680895,1715219448483,-397.44388952,0.00022,2]
[326680898,1715219448492,-397.44388952,0.00022,2]
[326680901,1715219448517,-397.44388952,0.00022,2]
[326680903,1715219448527,-397.44388952,0.00022,2]
[326680905,1715219448536,-397.44388952,0.00022,2]
[326680907,1715219448546,-397.44388952,0.00022,2]
[326680909,1715219448558,-397.44388952,0.00022,2]
[326680911,1715219448568,-397.44388952,0.00022,2]
[326680913,1715219448578,-397.44388952,0.00022,2]
[326680915,1715219448590,-397.44388952,0.00022,2]
[326680916,1715219448599,-397.44388952,0.00022,2]
[326680917,1715219448609,-397.44388952,0.00022,2]
[326680918,1715219448619,-397.44388952,0.00022,2]
[326680919,1715219448629,-397.44388952,0.00022,2]
[326680920,1715219448639,-397.44388952,0.00022,2]
[326680921,1715219448649,-397.44388952,0.00022,2]
[326680922,1715219448658,-397.44388952,0.00022,2]
[326680923,1715219448668,-397.44388952,0.00022,2]
[326680924,1715219448678,-397.44388952,0.00022,2]
[326680925,1715219448688,-397.44388952,0.00022,2]
[326680926,1715219448699,-397.44388952,0.00022,2]
[326680927,1715219448709,-397.44388952,0.00022,2]
[326680928,1715219448719,-397.44388952,0.00022,2]
[326680929,1715219448729,-397.44388952,0.00022,2]
[326680930,1715219448739,-397.44388952,0.00022,2]
[326680931,1715219448748,-397.44388952,0.00022,2]
[326680932,1715219448758,-397.44388952,0.00022,2]
[326680933,1715219448768,-397.44388952,0.00022,2]
[326680934,1715219448778,-397.44388952,0.00022,2]
[326680935,1715219448787,-397.44388952,0.00022,2]
[326680936,1715219448797,-397.44388952,0.00022,2]
[326680937,1715219448806,-397.44388952,0.00022,2]
[326680938,1715219448816,-157.92529717,0.00022022,2]
[326680939,1715219448826,-152.77499496,0.0002204,2]
[326680940,1715219448836,-151.40745661,0.00022092,2]
[326680941,1715219448845,-155.36406562,0.00022312,2]
[326680942,1715219448855,-400.0,0.0002236,2]
[326680943,1715219448864,-285.92,0.00022369,2]
[326680944,1715219448874,-235.94988463,0.00022374,2]
[326680945,1715219448883,-285.92,0.00022375,2]
[326680946,1715219448892,-285.92,0.00022381,2]
[326680947,1715219448901,-285.92,0.00022387,2]
[326680948,1715219448911,-285.92,0.00022393,2]
[326680949,1715219448920,-285.92,0.00022399,2]
[326680950,1715219448930,-285.92,0.00022404,2]
[326680951,1715219448939,-285.92,0.0002241,2]
[326680952,1715219448948,-285.92,0.00022416,2]
[326680953,1715219448957,-285.92,0.00022422,2]
[326680954,1715219448967,-285.92,0.00022428,2]
[326680955,1715219448976,-285.92,0.00022434,2]
[326680956,1715219448985,-285.92,0.0002244,2]
[326680957,1715219448994,-285.92,0.00022446,2]
[326680958,1715219449004,-285.92,0.00022452,2]
[326680959,1715219449014,-285.92,0.00022457,2]
[326680960,1715219449024,-285.92,0.00022463,2]
[326680961,1715219449033,-285.92,0.00022469,2]
[326680962,1715219449043,-285.92,0.00022475,2]
[326680963,1715219449052,-285.92,0.00022481,2]
[326680964,1715219449061,-369.04,0.000225,2]
[326680965,1715219449070,-151.40745661,0.0002251,2]
[326680966,1715219449079,-152.77499496,0.00022513,2]
[326680967,1715219449089,-356.508858,0.0002274,2]
[326680968,1715219449098,-151.40745661,0.00022927,2]
[326680969,1715219449108,-5713.1084896,0.00023011,2]
[326680970,1715219449117,-152.38976359,0.00023049,2]
[326680971,1715219449126,-155.36406562,0.0002309,2]
[326680972,1715219449135,-151.40745661,0.00023345,2]
[326680973,1715219449146,-500.0,0.00023374,2]
[326680974,1715219449156,-2002.05142652,0.000234,2]
[326680975,1715219449169,-413.56,0.000235,2]
[326680976,1715219449179,-2602.28168975,0.0002352,2]
[326680977,1715219449188,-356.508858,0.00023562,2]
[326680978,1715219449199,-397.7,0.000236,2]
[326680979,1715219449209,-66959.93079795,0.00023659,2]
[326680980,1715219449218,-151.0,0.00023659,7]
[326680981,1715219449227,-151.0,0.00023659,7]
[326680983,1715219449235,-151.0,0.00023659,7]
[326680984,1715219449245,-151.0,0.00023659,7]
[326680985,1715219449255,-151.0,0.00023659,7]
[326680986,1715219449264,-1561.86172371,0.00023685,2]
[326680987,1715219449275,-3500.94133622,0.00023686,2]
[326680988,1715219449284,-155.36406562,0.00023702,2]
[326680989,1715219449294,-151.40745661,0.00023763,2]
[326680990,1715219449303,-397.18696462,0.00023773,2]
[326680991,1715219449313,-228.8111743,0.00023843,2]
[326680992,1715219449322,-7481.92,0.00023844,2]
[326680993,1715219449332,-7308.71,0.00023844,2]
[326680994,1715219449342,-1151.18638074,0.0002385,2]
[326680995,1715219449352,-1827.77615289,0.00024,2]
[326680996,1715219449362,-1042.23614951,0.00024,2]
[326680997,1715219449371,-293.68275383,0.00024,2]
[326680998,1715219449381,-1037.41424557,0.00024,2]
[326680999,1715219449390,-37432.17503197,0.00024,2]
[326681000,1715219449400,-2215.11343661,0.00024,2]
[326681001,1715219449409,-432.43230672,0.00024,2]
[326681002,1715219449419,-155.04379397,0.00024,2]
[326681003,1715219449428,-291.077431,0.00024,2]
[326681004,1715219449437,-488.67450061,0.00024,2]
[326681005,1715219449447,-160.47556122,0.00024,2]
[326681006,1715219449456,-198.3847333,0.00024,2]
[326681007,1715219449466,-171.0,0.00024,2]
[326681008,1715219449475,-153.17379926,0.00024126,2]
[326681009,1715219449484,-151.40745661,0.00024181,2]
[326681010,1715219449493,-247.11033519,0.000242,2]
[326681011,1715219449504,-180.0,0.0002423,2]
[326681012,1715219449515,-155.24867987,0.0002425,2]
[326681013,1715219449525,-172.35652791,0.00024345,2]
[326681014,1715219449534,-356.508858,0.00024384,2]
[326681015,1715219449543,-369.04,0.000245,2]
[326681016,1715219449555,-151.40745661,0.00024599,2]
[326681017,1715219449564,-155.20712654,0.00024625,2]
[326681018,1715219449574,-344.81,0.00024658,2]
[326681019,1715219449583,-405.31529438,0.00024696,2]
[326681020,1715219449594,-1132.00221219,0.00024697,2]
[326681021,1715219449604,-1427.56705762,0.00024697,2]
[326681022,1715219449615,-227.72294241,0.00024698,2]
[326681023,1715219449624,-1000.0,0.00024698,2]
[326681024,1715219449633,-3842.92423952,0.00024699,2]
[326681025,1715219449644,-43130.57,0.000247,2]
[326681026,1715219449655,-153.17379926,0.00024785,2]
[326681027,1715219449665,-767.47278099,0.00024799,2]
[326681028,1715219449674,-1295.87608614,0.00024799,2]
[326681029,1715219449684,-155.36406562,0.00024927,2]
[326681030,1715219449693,-299.47933705,0.00024999,2]
[326681031,1715219449703,-9929.33587538,0.00025,2]
[326681032,1715219449712,-151.40745661,0.00025016,2]
[326681033,1715219449721,-174.9,0.0002502,2]
[326681034,1715219449730,-397.7,0.000251,2]
[326681035,1715219449739,-356.508858,0.00025205,2]
[326681036,1715219449749,-157.92529717,0.00025341,2]
[326681037,1715219449758,-205.58,0.00025379,2]
[326681038,1715219449767,-151.40745661,0.00025434,2]
[326681039,1715219449776,-153.17379926,0.00025692,2]
[326681040,1715219449786,-5713.1084896,0.00025789,2]
[326681041,1715219449796,-151.40745661,0.00025852,2]
[326681042,1715219449806,-500.0,0.00026022,2]
[326681043,1715219449815,-500.0,0.00026022,2]
[326681044,1715219449825,-500.0,0.00026022,2]
[326681045,1715219449834,-500.0,0.00026022,2]
[326681046,1715219449843,-500.0,0.00026022,2]
[326681047,1715219449854,-500.0,0.00026022,2]
[326681048,1715219449863,-500.0,0.00026022,2]
[326681049,1715219449873,-500.0,0.00026022,2]
[326681050,1715219449882,-500.0,0.00026022,2]
[326681051,1715219449892,-356.508858,0.00026027,2]
[326681052,1715219449901,-151.40745661,0.0002627,2]
[326681053,1715219449910,-413.56,0.000265,2]
[326681054,1715219449919,-369.04,0.000265,2]
[326681055,1715219449929,-156.05,0.00026541,2]
[326681056,1715219449938,-397.18696462,0.00026591,2]
[326681057,1715219449949,-155.36406562,0.00026622,2]
[326681058,1715219449958,-1000.0,0.00026627,2]
[326681059,1715219449968,-394.81,0.00026659,2]
[326681060,1715219449978,-151.40745661,0.00026688,2]
[326681061,1715219449988,-848.0,0.00026712,2]
[326681062,1715219449997,-327.36,0.00026727,2]
[326681063,1715219450007,-557.557,0.00026727,2]
[326681064,1715219450017,-1052.0,0.00026727,2]
[326681065,1715219450027,-356.508858,0.00026849,2]
[326681066,1715219450036,-20000.0,0.00026992,2]
[326681067,1715219450045,-705.31,0.00027002,2]
[326681068,1715219450054,-151.40745661,0.00027105,2]
[326681069,1715219450066,-10000.0,0.00027319,2]
[326681070,1715219450075,-6395.62,0.00027396,2]
[326681071,1715219450085,-155.0,0.00027397,2]
[326681072,1715219450096,-481.23,0.00027397,2]
[326681073,1715219450105,-622.21,0.00027397,2]
[326681074,1715219450114,-207.69,0.00027397,2]
[326681075,1715219450124,-500.0,0.00027397,2]
[326681076,1715219450133,-500.0,0.00027397,2]
[326681077,1715219450143,-424.26,0.00027397,2]
[326681078,1715219450153,-500.0,0.00027397,2]
[326681079,1715219450162,-500.0,0.00027397,2]
[326681080,1715219450171,-566.77,0.00027397,2]
[326681081,1715219450181,-500.0,0.00027397,2]
[326681082,1715219450190,-500.0,0.00027397,2]
[326681083,1715219450200,-500.0,0.00027397,2]
[326681084,1715219450209,-500.0,0.00027397,2]
[326681085,1715219450218,-500.0,0.00027397,2]
[326681086,1715219450228,-500.0,0.00027397,2]
[326681087,1715219450237,-500.0,0.00027397,2]
[326681088,1715219450246,-500.0,0.00027397,2]
[326681089,1715219450255,-500.0,0.00027397,2]
[326681090,1715219450264,-500.0,0.00027397,2]
[326681091,1715219450279,-500.0,0.00027397,2]
[326681092,1715219450289,-500.0,0.00027397,2]
[326681093,1715219450299,-500.0,0.00027397,2]
[326681094,1715219450308,-500.0,0.00027397,2]
[326681095,1715219450318,-500.0,0.00027397,2]
[326681096,1715219450327,-500.0,0.00027397,2]
[326681097,1715219450336,-500.0,0.00027397,2]
[326681098,1715219450346,-500.0,0.00027397,2]
[326681099,1715219450356,-516.08968345,0.00027397,2]
[326681100,1715219450365,-500.0,0.00027397,2]
[326681101,1715219450374,-500.0,0.00027397,2]
[326681102,1715219450383,-500.0,0.00027397,2]
[326681103,1715219450393,-500.0,0.00027397,2]
[326681104,1715219450402,-500.0,0.00027397,2]
[326681105,1715219450412,-500.0,0.00027397,2]
[326681106,1715219450421,-577.42,0.00027397,2]
[326681107,1715219450430,-509.36,0.00027397,2]
[326681108,1715219450439,-500.0,0.00027397,2]
[326681109,1715219450448,-500.0,0.00027397,2]
[326681110,1715219450458,-500.0,0.00027397,2]
[326681111,1715219450467,-500.0,0.00027397,2]
[326681112,1715219450476,-500.0,0.00027397,2]
[326681113,1715219450486,-500.0,0.00027397,2]
[326681114,1715219450495,-500.0,0.00027397,2]
[326681115,1715219450508,-500.0,0.00027397,2]
[326681116,1715219450517,-500.0,0.00027397,2]
[326681117,1715219450526,-500.0,0.00027397,2]
[326681118,1715219450535,-500.0,0.00027397,2]
[326681119,1715219450544,-500.0,0.00027397,2]
[326681120,1715219450555,-500.0,0.00027397,2]
[326681121,1715219450564,-621.06718302,0.00027397,2]
[326681122,1715219450573,-500.0,0.00027397,2]
[326681123,1715219450586,-500.0,0.00027397,2]
[326681124,1715219450596,-509.24041139,0.00027397,2]
[326681125,1715219450606,-509.12374475,0.00027397,2]
[326681126,1715219450615,-500.0,0.00027397,2]
[326681127,1715219450624,-500.0,0.00027397,2]
[326681128,1715219450633,-516.02972822,0.00027397,2]
[326681129,1715219450643,-532.90426993,0.00027397,2]
[326681130,1715219450652,-508.61648032,0.00027397,2]
[326681131,1715219450662,-500.0,0.00027397,2]
[326681132,1715219450671,-500.0,0.00027397,2]
[326681133,1715219450681,-514.53310723,0.00027397,2]
[326681134,1715219450690,-524.54111277,0.00027397,2]
[326681135,1715219450699,-508.98767023,0.00027397,2]
[326681136,1715219450708,-514.27558056,0.00027397,2]
[326681137,1715219450718,-585.03458094,0.00027397,2]
[326681138,1715219450727,-500.0,0.00027397,2]
[326681139,1715219450736,-511.19186001,0.00027397,2]
[326681140,1715219450745,-500.0,0.00027397,2]
[326681141,1715219450755,-509.7334794,0.00027397,2]
[326681142,1715219450764,-500.0,0.00027397,2]
[326681143,1715219450773,-500.0,0.00027397,2]
[326681144,1715219450782,-538.42224717,0.00027397,2]
[326681145,1715219450791,-515.26816816,0.00027397,2]
[326681146,1715219450802,-500.0,0.00027397,2]
[326681147,1715219450811,-500.0,0.00027397,2]
[326681148,1715219450820,-500.0,0.00027397,2]
[326681149,1715219450830,-511.66865442,0.00027397,2]
[326681150,1715219450839,-522.06883758,0.00027397,2]
[326681152,1715219450848,-664.55,0.00027397,2]
[326681154,1715219450858,-500.0,0.00027397,2]
[326681155,1715219450867,-500.0,0.00027397,2]
[326681157,1715219450876,-500.0,0.00027397,2]
[326681158,1715219450886,-517.7219324,0.00027397,2]
[326681159,1715219450898,-1067.91,0.00027397,2]
[326681160,1715219450907,-500.0,0.00027397,2]
[326681161,1715219450917,-500.0,0.00027397,2]
[326681162,1715219450927,-500.0,0.00027397,2]
[326681163,1715219450936,-500.0,0.00027397,2]
[326681164,1715219450945,-500.0,0.00027397,2]
[326681165,1715219450954,-550.78,0.00027397,2]
[326681166,1715219450963,-500.0,0.00027397,2]
[326681167,1715219450972,-500.0,0.00027397,2]
[326681168,1715219450982,-500.0,0.00027397,2]
[326681169,1715219450991,-500.80618136,0.00027397,2]
[326681170,1715219451000,-500.0,0.00027397,2]
[326681171,1715219451009,-500.11,0.00027397,2]
[326681172,1715219451018,-500.0,0.00027397,2]
[326681173,1715219451028,-664.08,0.00027397,2]
[326681174,1715219451037,-500.0,0.00027397,2]
[326681175,1715219451047,-500.0,0.00027397,2]
[326681176,1715219451057,-500.0,0.00027397,2]
[326681177,1715219451066,-549.9,0.00027397,2]
[326681178,1715219451076,-500.0,0.00027397,2]
[326681179,1715219451086,-500.0,0.00027397,2]
[326681180,1715219451096,-543.73,0.00027397,2]
[326681181,1715219451105,-500.0,0.00027397,2]
[326681182,1715219451114,-500.0,0.00027397,2]
[326681183,1715219451123,-500.0,0.00027397,2]
[326681184,1715219451132,-500.0,0.00027397,2]
[326681185,1715219451142,-500.0,0.00027397,2]
[326681186,1715219451151,-500.0,0.00027397,2]
[326681187,1715219451161,-500.0,0.00027397,2]
[326681188,1715219451171,-500.0,0.00027397,2]
[326681189,1715219451180,-1190.8,0.00027397,2]
[326681190,1715219451190,-859.07,0.00027397,2]
[326681191,1715219451199,-500.0,0.00027397,2]
[326681192,1715219451209,-986.6,0.00027397,2]
[326681193,1715219451218,-500.0,0.00027397,2]
[326681194,1715219451228,-500.0,0.00027397,2]
[326681195,1715219451237,-500.0,0.00027397,2]
[326681196,1715219451246,-500.0,0.00027397,2]
[326681197,1715219451255,-1149.3,0.00027397,2]
[326681198,1715219451264,-516.86,0.00027397,2]
[326681199,1715219451273,-500.0,0.00027397,2]
[326681200,1715219451283,-500.0,0.00027397,2]
[326681201,1715219451292,-500.0,0.00027397,2]
[326681202,1715219451301,-500.0,0.00027397,2]
[326681203,1715219451311,-916.99,0.00027397,2]
[326681204,1715219451321,-500.0,0.00027397,2]
[326681205,1715219451330,-500.0,0.00027397,2]
[326681206,1715219451340,-500.0,0.00027397,2]
[326681207,1715219451349,-500.0,0.00027397,2]
[326681208,1715219451359,-538.32,0.00027397,2]
[326681209,1715219451369,-500.0,0.00027397,2]
[326681210,1715219451379,-656.13,0.00027397,2]
[326681211,1715219451388,-500.0,0.00027397,2]
[326681212,1715219451397,-500.0,0.00027397,2]
[326681213,1715219451406,-500.0,0.00027397,2]
[326681214,1715219451415,-500.0,0.00027397,2]
[326681215,1715219451589,-500.0,0.00027397,2]
[326681216,1715219451598,-500.0,0.00027397,2]
[326681217,1715219451608,-500.0,0.00027397,2]
[326681218,1715219451617,-500.0,0.00027397,2]
[326681219,1715219451626,-500.0,0.00027397,2]
[326681220,1715219451635,-500.0,0.00027397,2]
[326681221,1715219451644,-1284.05,0.00027397,2]
[326681222,1715219451653,-1127.51,0.00027397,2]
[326681223,1715219451661,-500.0,0.00027397,2]
[326681224,1715219451671,-539.44,0.00027397,2]
[326681225,1715219451680,-530.18,0.00027397,2]
[326681226,1715219451688,-500.0,0.00027397,2]
[326681227,1715219451697,-480.57273077,0.00027397,2]
[326681228,1715219451707,-500.0,0.00027397,2]
[326681229,1715219451716,-500.0,0.00027397,2]
[326681230,1715219451726,-500.0,0.00027397,2]
[326681231,1715219451735,-500.0,0.00027397,2]
[326681232,1715219451744,-500.0,0.00027397,2]
[326681233,1715219451753,-500.0,0.00027397,2]
[326681234,1715219451762,-500.0,0.00027397,2]
[326681235,1715219451771,-151.0,0.00027397,7]
[326681236,1715219451780,-1087.69,0.00027397,2]
[326681237,1715219451790,-500.0,0.00027397,2]
[326681238,1715219451799,-500.0,0.00027397,2]
[326681239,1715219451808,-500.0,0.00027397,2]
[326681240,1715219451817,-1107.66,0.00027397,2]
[326681241,1715219451826,-500.0,0.00027397,2]
[326681242,1715219451835,-967.05,0.00027397,2]
[326681243,1715219451845,-500.0,0.00027397,2]
[326681244,1715219451854,-151.0,0.00027397,7]
[326681245,1715219451863,-500.0,0.00027397,2]
[326681246,1715219451872,-500.0,0.00027397,2]
[326681247,1715219451882,-500.0,0.00027397,2]
[326681248,1715219451890,-500.0,0.00027397,2]
[326681249,1715219451899,-500.0,0.00027397,2]
[326681250,1715219451908,-500.0,0.00027397,2]
[326681251,1715219451917,-500.0,0.00027397,2]
[326681252,1715219451927,-151.0,0.00027397,7]
[326681253,1715219451935,-500.0,0.00027397,2]
[326681254,1715219451944,-500.0,0.00027397,2]
[326681255,1715219451954,-500.0,0.00027397,2]
[326681256,1715219451963,-551.54,0.00027397,2]
[326681257,1715219451972,-500.0,0.00027397,2]
[326681258,1715219451981,-3088.76,0.00027397,2]
[326681259,1715219451990,-151.0,0.00027397,7]
[326681260,1715219452000,-500.0,0.00027397,2]
[326681261,1715219452009,-383.77368578,0.00027397,2]
[326681262,1715219452020,-500.0,0.00027397,2]
[326681263,1715219452029,-500.0,0.00027397,2]
[326681264,1715219452038,-151.0,0.00027397,7]
[326681265,1715219452048,-500.0,0.00027397,2]
[326681266,1715219452057,-500.0,0.00027397,2]
[326681267,1715219452066,-500.0,0.00027397,2]
[326681268,1715219452075,-500.0,0.00027397,2]
[326681269,1715219452084,-824.35,0.00027397,2]
[326681270,1715219452094,-500.0,0.00027397,2]
[326681271,1715219452103,-500.0,0.00027397,2]
[326681272,1715219452113,-830.79,0.00027397,2]
[326681273,1715219452122,-500.0,0.00027397,2]
[326681274,1715219452132,-500.0,0.00027397,2]
[326681275,1715219452141,-500.0,0.00027397,2]
[326681276,1715219452151,-500.0,0.00027397,2]
[326681277,1715219452160,-510.34372436,0.00027397,2]
[326681278,1715219452169,-500.0,0.00027397,2]
[326681279,1715219452178,-500.0,0.00027397,2]
[326681280,1715219452187,-500.0,0.00027397,2]
[326681281,1715219452196,-1190.63,0.00027397,2]
[326681282,1715219452205,-540.0,0.00027397,2]
[326681283,1715219452215,-500.0,0.00027397,2]
[326681284,1715219452226,-492.17794337,0.00027397,2]
[326681285,1715219452236,-500.0,0.00027397,2]
[326681286,1715219452246,-500.0,0.00027397,2]
[326681287,1715219452256,-500.0,0.00027397,2]
[326681288,1715219452265,-500.0,0.00027397,2]
[326681289,1715219452275,-516.84699041,0.00027397,2]
[326681290,1715219452285,-500.0,0.00027397,2]
[326681291,1715219452294,-500.0,0.00027397,2]
[326681292,1715219452304,-500.0,0.00027397,2]
[326681293,1715219452313,-553.58112932,0.00027397,2]
[326681294,1715219452322,-500.0,0.00027397,2]
[326681295,1715219452331,-500.0,0.00027397,2]
[326681296,1715219452340,-530.97,0.00027397,2]
[326681297,1715219452350,-532.10694033,0.00027397,2]
[326681298,1715219452360,-500.0,0.00027397,2]
[326681299,1715219452369,-500.0,0.00027397,2]
[326681300,1715219452379,-500.0,0.00027397,2]
[326681301,1715219452388,-7854.15,0.00027397,2]
[326681302,1715219452398,-500.07,0.00027397,2]
[326681303,1715219452407,-544.85273665,0.00027397,2]
[326681304,1715219452416,-500.0,0.00027397,2]
[326681305,1715219452426,-648.9,0.00027397,2]
[326681306,1715219452435,-500.0,0.00027397,2]
[326681307,1715219452445,-500.0,0.00027397,2]
[326681308,1715219452456,-500.0,0.00027397,2]
[326681309,1715219452465,-500.0,0.00027397,2]
[326681310,1715219452475,-500.0,0.00027397,2]
[326681311,1715219452484,-500.0,0.00027397,2]